bitfinex-derivatives/quotes_BTCF0:USTF0_20241116
["timestamp","ask_amount","ask_price","bid_price","bid_amount"]
[1731744002403,0.0051,91172.0,91171.0,0.27676887]
[1731744002797,0.0051,91172.0,91171.0,0.53963432]
[1731744003002,0.0051,91172.0,91171.0,0.45999432]
[1731744003195,0.0051,91172.0,91171.0,0.19712887]
[1731744003501,0.0051,91172.0,91171.0,0.39434484]
[1731744004800,0.0051,91172.0,91170.0,0.19721597]
[1731744005004,0.0051,91172.0,91166.0,0.19721597]
[1731744005306,0.3608,91169.0,91165.0,0.23749691]
[1731744005503,0.3608,91169.0,91161.0,0.26286545]
[1731744005504,0.13081491,91167.0,91164.0,0.19721597]
[1731744005696,0.13081491,91167.0,91156.0,0.07964]
[1731744005697,0.13081491,91167.0,91163.0,0.19721597]
[1731744006295,0.3608,91169.0,91161.0,0.07964]
[1731744006296,0.13081491,91165.0,91161.0,0.07964]
[1731744006491,0.13081491,91165.0,91161.0,0.34250545]
[1731744006701,0.13081491,91166.0,91161.0,0.07964]
[1731744007507,0.13081491,91167.0,91165.0,0.19713343]
[1731744008504,0.13081491,91167.0,91161.0,0.07964]
[1731744008505,0.13081491,91168.0,91164.0,0.19713343]
[1731744008710,0.3608,91169.0,91164.0,0.26286545]
[1731744009303,0.3608,91169.0,91167.0,0.06823185]
[1731744010803,0.3608,91169.0,91167.0,0.3310973]
[1731744011313,0.3608,91169.0,91168.0,0.26286545]
[1731744012218,0.3608,91169.0,91167.0,0.1095837]
[1731744012418,0.0051,91179.0,91168.0,0.06823185]
[1731744012713,4.789e-05,91181.0,91168.0,0.06823185]
[1731744012714,4.789e-05,91181.0,91174.0,0.06823185]
[1731744012908,4.789e-05,91181.0,91175.0,0.07968]
[1731744013409,4.789e-05,91181.0,91175.0,0.26270211]
[1731744013601,0.0322,91180.0,91175.0,0.26270211]
[1731744013803,0.0322,91180.0,91174.0,0.34238211]
[1731744014612,0.0322,91180.0,91175.0,0.26270211]
[1731744015109,0.0322,91180.0,91174.0,0.34238211]
[1731744015512,0.0322,91180.0,91175.0,0.26270211]
[1731744015899,0.0322,91180.0,91170.0,0.42903185]
[1731744015900,0.49161491,91177.0,91172.0,0.19705897]
[1731744016115,0.49161491,91177.0,91173.0,0.07968]
[1731744017999,0.49161491,91177.0,91174.0,0.06823185]
[1731744019611,0.49161491,91177.0,91174.0,0.26529082]
[1731744019805,0.49161491,91177.0,91174.0,0.06823185]
[1731744020618,0.13081491,91176.0,91174.0,0.26529082]
[1731744021915,0.3608,91177.0,91174.0,0.14783185]
[1731744022115,0.49161491,91177.0,91174.0,0.34493941]
[1731744022303,0.13081491,91176.0,91174.0,0.34493941]
[1731744022502,0.49161491,91177.0,91174.0,0.34493941]
[1731744022710,0.49161491,91177.0,91175.0,0.19710756]
[1731744022904,0.49161491,91177.0,91174.0,0.34493941]
[1731744023323,0.49161491,91177.0,91175.0,0.19710756]
[1731744023816,0.13081491,91176.0,91174.0,0.14783185]
[1731744024414,0.49161491,91177.0,91175.0,0.19712607]
[1731744024813,0.49161491,91177.0,91175.0,0.26535792]
[1731744025013,0.13081491,91176.0,91175.0,0.26535792]
[1731744026513,0.49161491,91177.0,91175.0,0.06823185]
[1731744027416,0.1308628,91181.0,91175.0,0.26535792]
[1731744027608,0.13081491,91180.0,91175.0,0.06823185]
[1731744027806,0.13081491,91179.0,91175.0,0.06823185]
[1731744028218,0.13081491,91179.0,91178.0,0.19712607]
[1731744028413,4.789e-05,91181.0,91178.0,0.19712607]
[1731744028818,4.789e-05,91181.0,91177.0,0.19712607]
[1731744029012,0.13073253,91178.0,91177.0,0.19712607]
[1731744029313,0.36084789,91181.0,91175.0,0.06823185]
[1731744029526,0.36084789,91181.0,91178.0,0.19714817]
[1731744030117,0.36084789,91181.0,91177.0,0.19714817]
[1731744030720,0.36084789,91181.0,91179.0,0.19714817]
[1731744030926,0.36084789,91181.0,91177.0,0.19714817]
[1731744031218,0.36084789,91181.0,91178.0,0.19714817]
[1731744031722,0.36084789,91181.0,91177.0,0.19714817]
[1731744032028,0.13077248,91179.0,91175.0,0.06823185]
[1731744032524,0.13077248,91178.0,91177.0,0.19714817]
[1731744033225,0.13077248,91179.0,91175.0,0.06823185]
[1731744033614,0.13077248,91180.0,91175.0,0.3449743]
[1731744035626,0.36084789,91181.0,91177.0,0.19714245]
[1731744035627,0.13077248,91179.0,91177.0,0.19714245]
[1731744035825,0.10967437,91179.0,91178.0,0.3449743]
[1731744036430,0.10967437,91179.0,91178.0,0.50863185]
[1731744037322,0.10967437,91179.0,91178.0,0.14783185]
[1731744039519,0.10967437,91179.0,91178.0,0.4504646]
[1731744039732,0.10967437,91179.0,91178.0,0.18776249]
[1731744040217,0.10967437,91179.0,91178.0,0.03993064]
[1731744040420,0.10967437,91179.0,91178.0,0.26270211]
[1731744041125,0.10967437,91179.0,91177.0,0.34230211]
[1731744041329,0.10967437,91179.0,91177.0,0.0796]
[1731744041517,0.10967437,91179.0,91177.0,0.34230211]
[1731744042024,0.24044685,91179.0,91177.0,0.0796]
[1731744042226,0.24044685,91179.0,91177.0,0.27686388]
[1731744042227,0.10967437,91179.0,91177.0,0.27686388]
[1731744042527,0.10967437,91179.0,91177.0,0.23880944]
[1731744042834,0.0307,91178.0,91177.0,0.0415405]
[1731744043020,0.0307,91178.0,91176.0,0.19726894]
[1731744043220,0.0321,91177.0,91176.0,0.19726894]
[1731744043432,0.0321,91177.0,91175.0,0.19726894]
[1731744043727,0.0321,91177.0,91174.0,0.19726894]
[1731744044028,0.13086166,91175.0,91174.0,0.19726894]
[1731744044627,0.13086166,91175.0,91171.0,0.30319729]
[1731744045518,0.13086166,91174.0,91172.0,0.26270211]
[1731744045723,0.13086166,91174.0,91171.0,0.30319729]
[1731744045929,0.13086166,91174.0,91171.0,0.26270211]
[1731744048329,0.13086166,91174.0,91171.0,0.34226211]
[1731744049532,0.13086166,91174.0,91171.0,0.26270211]
[1731744049930,0.13086166,91173.0,91172.0,0.26270211]
[1731744051633,0.10967437,91179.0,91172.0,0.26270211]
[1731744051634,0.13086166,91174.0,91172.0,0.26270211]
[1731744051943,0.13086166,91174.0,91173.0,0.06823185]
[1731744053023,0.13086166,91175.0,91173.0,0.06823185]
[1731744053219,0.13086166,91175.0,91171.0,0.26270211]
[1731744054133,0.13086166,91175.0,91172.0,0.26270211]
[1731744054328,0.10967437,91179.0,91173.0,0.26270211]
[1731744054329,0.13086166,91174.0,91173.0,0.26270211]
[1731744055226,0.13086166,91175.0,91173.0,0.26270211]
[1731744055624,0.13086166,91174.0,91173.0,0.26270211]
[1731744056334,0.13086166,91177.0,91173.0,0.26270211]
[1731744056530,0.13086166,91177.0,91170.0,0.25728885]
[1731744056531,0.13086166,91178.0,91176.0,0.06823185]
[1731744056734,0.24053603,91179.0,91176.0,0.06823185]
[1731744058230,0.13086166,91178.0,91176.0,0.06823185]
[1731744058627,0.13086166,91177.0,91176.0,0.33127037]
[1731744059822,0.10967437,91179.0,91176.0,0.33127037]
[1731744060027,0.10967437,91179.0,91177.0,0.26303852]
[1731744060531,0.10967437,91179.0,91178.0,0.26303852]
[1731744061730,0.10967437,91179.0,91177.0,0.26303852]
[1731744062043,0.10967437,91179.0,91178.0,0.26303852]
[1731744062424,0.10967437,91179.0,91177.0,0.26303852]
[1731744063029,0.10967437,91179.0,91176.0,0.06823185]
[1731744066539,0.10967437,91179.0,91177.0,0.26299056]
[1731744067036,0.10967437,91179.0,91176.0,0.33122241]
[1731744067435,0.10967437,91179.0,91178.0,0.26299056]
[1731744068845,0.10967437,91179.0,91176.0,0.33122241]
[1731744069249,0.10967437,91179.0,91177.0,0.26299056]
[1731744069944,0.10967437,91179.0,91178.0,0.06823185]
[1731744071737,0.10967437,91179.0,91178.0,0.33122241]
[1731744073843,0.10967437,91179.0,91178.0,0.06823185]
[1731744074144,0.10967437,91179.0,91177.0,0.19725181]
[1731744074449,0.10967437,91179.0,91176.0,0.19725181]
[1731744074644,0.10967437,91179.0,91170.0,0.04126515]
[1731744074645,0.3608,91177.0,91173.0,0.19725181]
[1731744074847,0.031,91176.0,91172.0,0.19725181]
[1731744075042,0.031,91176.0,91171.0,0.19725181]
[1731744075241,0.13078611,91172.0,91171.0,0.19725181]
[1731744075640,0.031,91176.0,91171.0,0.19726158]
[1731744075838,0.031,91176.0,91170.0,0.19726158]
[1731744075839,0.19447476,91176.0,91170.0,0.19726158]
[1731744076048,0.19447476,91176.0,91166.0,0.26299056]
[1731744076049,0.16347476,91172.0,91167.0,0.19726158]
[1731744076239,0.3608,91168.0,91166.0,0.23845859]
[1731744076639,0.3608,91168.0,91165.0,0.19726158]
[1731744077052,0.13071245,91167.0,91164.0,0.10846077]
[1731744077243,0.13071245,91166.0,91164.0,0.10846077]
[1731744077445,0.13071245,91169.0,91164.0,0.10846077]
[1731744077647,0.13071245,91168.0,91167.0,0.1971845]
[1731744077851,0.13071245,91169.0,91167.0,0.26541635]
[1731744078040,0.13071245,91168.0,91167.0,0.06823185]
[1731744078247,0.0302,91171.0,91167.0,0.26541635]
[1731744078248,0.13071245,91169.0,91167.0,0.26541635]
[1731744078444,0.13071245,91170.0,91167.0,0.06823185]
[1731744079653,0.16091245,91171.0,91167.0,0.06823185]
[1731744079953,0.13071245,91170.0,91167.0,0.06823185]
[1731744080352,0.13071245,91170.0,91167.0,0.26541635]
[1731744080546,0.0302,91171.0,91169.0,0.19712028]
[1731744080742,0.0302,91171.0,91168.0,0.19712028]
[1731744081540,0.0302,91171.0,91167.0,0.06823185]
[1731744081541,0.0302,91171.0,91169.0,0.19712028]
[1731744082544,0.0302,91171.0,91168.0,0.19712028]
[1731744082752,0.0302,91171.0,91169.0,0.19712028]
[1731744083057,0.13071245,91175.0,91168.0,0.19712028]
[1731744083260,0.13071245,91175.0,91173.0,0.06823185]
[1731744083448,0.13071245,91177.0,91171.0,0.19712028]
[1731744083647,0.13071245,91177.0,91176.0,0.06823185]
[1731744083847,0.10967437,91179.0,91176.0,0.06823185]
[1731744084248,0.13068379,91177.0,91176.0,0.06823185]
[1731744084448,0.24035816,91179.0,91176.0,0.06823185]
[1731744084645,0.10967437,91179.0,91176.0,0.06823185]
[1731744084852,0.24035816,91179.0,91176.0,0.26535213]
[1731744086352,0.10967437,91179.0,91176.0,0.26535213]
[1731744086557,0.10967437,91179.0,91178.0,0.19712028]
[1731744086757,0.10967437,91179.0,91176.0,0.06823185]
[1731744087960,0.10967437,91179.0,91178.0,0.19707398]
[1731744089166,0.10967437,91179.0,91176.0,0.37229876]
[1731744089570,0.21934874,91179.0,91176.0,0.37229876]
[1731744089961,0.21934874,91179.0,91178.0,0.69202241]
[1731744090259,0.21934874,91179.0,91178.0,0.3608]
[1731744090964,0.21934874,91179.0,91178.0,0.68958759]
[1731744091563,0.21934874,91179.0,91178.0,0.3608]
[1731744092070,0.21934874,91179.0,91178.0,0.36506834]
[1731744092969,0.21934874,91179.0,91178.0,0.43330019]
[1731744093267,0.21934874,91179.0,91178.0,0.36506834]
[1731744095466,0.21934874,91179.0,91178.0,0.36508179]
[1731744096167,0.21934874,91179.0,91178.0,0.38701903]
[1731744096464,0.21934874,91179.0,91178.0,0.45525088]
[1731744096465,0.16206374,91179.0,91178.0,0.45525088]
[1731744096665,0.10483674,91179.0,91178.0,0.45525088]
[1731744096857,0.04291074,91179.0,91178.0,0.45096909]
[1731744097060,0.04291074,91179.0,91178.0,0.45521682]
[1731744097361,0.13068379,91202.0,91178.0,1.11657437]
[1731744097669,0.13068379,91204.0,91197.0,0.06823185]
[1731744097866,0.13068379,91204.0,91191.0,0.3608]
[1731744097867,0.13068379,91205.0,91202.0,0.06823185]
[1731744098073,0.3608,91205.0,91202.0,0.06823185]
[1731744099378,0.3608,91205.0,91204.0,0.06823185]
[1731744099570,0.3608,91205.0,91202.0,0.10892602]
[1731744099872,0.3608,91205.0,91204.0,0.06823185]
[1731744100070,0.3608,91205.0,91202.0,0.10892602]
[1731744100377,0.00164506,91209.0,91202.0,0.10892602]
[1731744100580,0.00164506,91209.0,91208.0,0.06823185]
[1731744102076,0.3608,91217.0,91208.0,0.06823185]
[1731744102281,0.3608,91217.0,91216.0,0.06823185]
[1731744102467,0.064,91226.0,91216.0,0.06823185]
[1731744102468,0.3608,91220.0,91216.0,0.06823185]
[1731744102774,0.19468379,91226.0,91219.0,0.06823185]
[1731744102967,0.064,91226.0,91219.0,0.06823185]
[1731744103475,0.3608,91224.0,91219.0,0.06823185]
[1731744103975,0.3608,91224.0,91214.0,0.06823185]
[1731744105779,0.3608,91224.0,91200.0,0.40348522]
[1731744106075,0.06823185,91222.0,91208.0,0.06823185]
[1731744107078,0.06823185,91222.0,91209.0,0.07952]
[1731744107271,0.06823185,91222.0,91208.0,0.06823185]
[1731744107468,0.06823185,91222.0,91209.0,0.07952]
[1731744107977,0.06823185,91211.0,91201.0,0.07952]
[1731744108167,0.0983,91210.0,91201.0,0.07952]
[1731744108771,0.0983,91210.0,91200.0,0.40344522]
[1731744108976,0.0983,91210.0,91200.0,0.40216522]
[1731744109574,0.42903185,91206.0,91197.0,0.02193623]
[1731744109974,0.42903185,91206.0,91191.0,0.48169708]
[1731744110180,0.42903185,91206.0,91191.0,0.46916893]
[1731744110474,0.3608,91206.0,91196.0,0.06823185]
[1731744111268,0.3608,91206.0,91195.0,0.02193405]
[1731744111466,0.3608,91206.0,91196.0,0.06823185]
[1731744113975,0.49148379,91206.0,91196.0,0.06823185]
[1731744114566,0.13068379,91204.0,91196.0,0.06823185]
[1731744115586,0.13068379,91203.0,91196.0,0.06823185]
[1731744116080,0.13068379,91204.0,91196.0,0.06823185]
[1731744116580,0.3608,91206.0,91196.0,0.06823185]
[1731744116581,0.13068379,91202.0,91196.0,0.06823185]
[1731744116781,0.13068379,91205.0,91201.0,0.06823185]
[1731744117176,0.0983,91210.0,91201.0,0.06823185]
[1731744117177,0.0654,91210.0,91201.0,0.06823185]
[1731744117480,0.0654,91210.0,91206.0,0.06823185]
[1731744119475,0.13068379,91212.0,91206.0,0.06823185]
[1731744119476,0.49148379,91214.0,91206.0,0.1364637]
[1731744119675,0.49148379,91214.0,91211.0,0.06823185]
[1731744119676,0.3608,91214.0,91211.0,0.06823185]
[1731744119875,0.13068379,91219.0,91211.0,0.06823185]
[1731744120086,0.0314,91222.0,91207.0,0.3608]
[1731744120087,0.13068379,91220.0,91216.0,0.06823185]
[1731744120973,0.13068379,91218.0,91216.0,0.06823185]
[1731744121278,0.13068379,91220.0,91216.0,0.06823185]
[1731744122078,0.13068379,91218.0,91216.0,0.06823185]
[1731744124187,0.13068379,91218.0,91217.0,0.00011368]
[1731744125587,0.13061234,91218.0,91217.0,0.00011368]
[1731744125886,0.13061234,91219.0,91217.0,0.00011368]
[1731744126194,0.13061234,91220.0,91217.0,0.00011368]
[1731744126786,0.13061234,91219.0,91217.0,0.00011368]
[1731744126983,0.13061234,91220.0,91217.0,0.00011368]
[1731744128078,0.13061234,91220.0,91217.0,0.0220452]
[1731744130591,0.13061234,91221.0,91217.0,0.0220452]
[1731744130988,0.10962147,91223.0,91217.0,0.0220452]
[1731744130989,0.13061234,91220.0,91217.0,0.0220452]
[1731744131188,0.13061234,91220.0,91217.0,0.06290141]
[1731744131393,0.13061234,91219.0,91217.0,0.00011368]
[1731744131887,0.13061234,91220.0,91217.0,0.00011368]
[1731744132090,0.13061234,91219.0,91217.0,0.00011368]
[1731744133296,0.13061234,91219.0,91218.0,0.06823185]
[1731744133489,0.13061234,91220.0,91218.0,0.06823185]
[1731744133690,0.13061234,91221.0,91218.0,0.06823185]
[1731744133891,0.10962147,91223.0,91218.0,0.06823185]
[1731744133892,0.13061234,91222.0,91218.0,0.06823185]
[1731744136796,0.24023381,91223.0,91218.0,0.06823185]
[1731744139004,0.10962147,91223.0,91218.0,0.06823185]
[1731744140999,0.10962147,91223.0,91219.0,0.07944]
[1731744141597,0.24023381,91223.0,91219.0,0.07944]
[1731744141994,0.10962147,91223.0,91219.0,0.07944]
[1731744142197,0.10962147,91223.0,91222.0,0.06823185]
[1731744142996,0.04855786,91231.0,91222.0,0.06823185]
[1731744143193,0.13571234,91243.0,91230.0,0.42903185]
[1731744143393,0.04149072,91248.0,91230.0,0.42903185]
[1731744143394,0.49141234,91246.0,91242.0,0.06823185]
[1731744143600,0.49141234,91246.0,91242.0,0.14767185]
[1731744144613,0.3608,91246.0,91242.0,0.14767185]
[1731744146704,0.04149072,91248.0,91242.0,0.18923234]
[1731744146904,0.04149072,91248.0,91247.0,0.06823185]
[1731744149715,0.04149072,91248.0,91242.0,0.12100049]
[1731744149914,0.06823185,91247.0,91238.0,0.3608]
[1731744150220,0.04149072,91248.0,91238.0,0.3608]
[1731744150221,0.06823185,91239.0,91238.0,0.3608]
[1731744150515,0.06823185,91239.0,91237.0,0.04124235]
[1731744150702,0.06823185,91239.0,91234.0,0.07944]
[1731744150905,0.0321,91238.0,91234.0,0.07944]
[1731744151107,0.0321,91238.0,91231.0,0.07944]
[1731744151513,0.0321,91238.0,91230.0,0.40320788]
[1731744151719,0.0321,91238.0,91230.0,0.40188788]
[1731744153611,0.0321,91238.0,91230.0,0.3608]
[1731744156516,0.06823185,91239.0,91232.0,0.06823185]
[1731744156517,0.13061234,91239.0,91232.0,0.06823185]
[1731744157914,0.13061234,91240.0,91237.0,0.06823185]
[1731744158117,0.13061234,91241.0,91237.0,0.06823185]
[1731744158713,0.49141234,91242.0,91237.0,0.06823185]
[1731744159218,0.13061234,91241.0,91237.0,0.06823185]
[1731744161525,0.13061234,91240.0,91237.0,0.06823185]
[1731744162119,0.13061234,91241.0,91237.0,0.06823185]
[1731744162528,0.13061234,91240.0,91237.0,0.06823185]
[1731744163425,0.13061234,91246.0,91237.0,0.06823185]
[1731744163625,0.13061234,91246.0,91243.0,0.06823185]
[1731744163932,0.13061234,91247.0,91243.0,0.06823185]
[1731744164635,0.13061234,91246.0,91243.0,0.06823185]
[1731744166532,0.13061234,91245.0,91243.0,0.06823185]
[1731744166932,0.3608,91250.0,91243.0,0.06823185]
[1731744166933,0.13061234,91246.0,91243.0,0.06823185]
[1731744167223,0.3608,91250.0,91243.0,0.06823185]
[1731744167224,0.13061234,91245.0,91243.0,0.06823185]
[1731744168025,0.17210306,91248.0,91243.0,0.06823185]
[1731744169026,0.04149072,91248.0,91244.0,0.07944]
[1731744169227,0.04149072,91248.0,91244.0,0.11044]
[1731744171527,7.2e-07,91248.0,91244.0,0.37285866]
[1731744172021,7.2e-07,91248.0,91245.0,0.34185866]
[1731744172528,7.2e-07,91248.0,91245.0,0.07944]
[1731744176830,7.2e-07,91248.0,91246.0,0.19678314]
[1731744177538,7.2e-07,91248.0,91245.0,0.27622314]
[1731744178836,7.2e-07,91248.0,91245.0,0.07944]
[1731744179031,7.2e-07,91248.0,91247.0,0.3608]
[1731744179529,7.2e-07,91248.0,91247.0,0.4621218]
[1731744185431,7.2e-07,91248.0,91247.0,0.65890494]
[1731744185740,7.2e-07,91248.0,91247.0,0.4621218]
[1731744186942,7.2e-07,91248.0,91247.0,0.3827218]
[1731744187152,7.2e-07,91248.0,91247.0,0.53035365]
[1731744188032,7.2e-07,91248.0,91247.0,0.72711928]
[1731744188434,7.2e-07,91248.0,91247.0,0.53035365]
[1731744188637,7.2e-07,91248.0,91247.0,0.72711928]
[1731744190228,7.2e-07,91248.0,91247.0,0.53035365]
[1731744192445,7.2e-07,91248.0,91247.0,0.71337231]
[1731744192632,7.2e-07,91248.0,91247.0,0.79277231]
[1731744194534,7.2e-07,91248.0,91247.0,0.53035365]
[1731744198949,7.2e-07,91248.0,91247.0,0.16955365]
[1731744199248,7.2e-07,91248.0,91247.0,0.53035365]
[1731744201343,7.2e-07,91248.0,91247.0,0.16955365]
[1731744201546,7.2e-07,91248.0,91247.0,0.85914124]
[1731744203455,7.2e-07,91248.0,91247.0,0.49834124]
[1731744203747,7.2e-07,91248.0,91247.0,0.85914124]
[1731744204142,7.2e-07,91248.0,91247.0,1.1837608]
[1731744204342,7.2e-07,91248.0,91247.0,0.85914124]
[1731744205940,7.2e-07,91248.0,91247.0,0.53035365]
[1731744206342,0.07287506,91251.0,91247.0,0.53035365]
[1731744206642,0.16347476,91259.0,91247.0,0.85914124]
[1731744206948,0.16347476,91260.0,91254.0,0.26294901]
[1731744207352,0.16347476,91260.0,91255.0,0.26294901]
[1731744209642,0.16347476,91260.0,91256.0,0.3608]
[1731744209840,0.16347476,91262.0,91257.0,0.34234901]
[1731744210049,0.16347476,91263.0,91258.0,0.26294901]
[1731744211450,0.16347476,91263.0,91262.0,0.19717855]
[1731744211649,0.16364171,91263.0,91257.0,0.34234901]
[1731744212153,0.16364171,91263.0,91257.0,0.0794]
[1731744212647,0.16364171,91263.0,91257.0,0.34234901]
[1731744213354,0.16364171,91265.0,91259.0,0.26294901]
[1731744213949,0.16364171,91263.0,91257.0,0.34234901]
[1731744214350,0.16364171,91263.0,91257.0,0.26294901]
[1731744214554,0.16364171,91263.0,91258.0,0.0794]
[1731744215848,0.16364171,91263.0,91258.0,0.34234901]
[1731744216150,0.16364171,91263.0,91258.0,0.0794]
[1731744216544,0.16364171,91261.0,91260.0,0.1971942]
[1731744217253,0.16364171,91263.0,91260.0,0.02192014]
[1731744217654,0.16364171,91264.0,91260.0,0.02192014]
[1731744218048,0.16364171,91263.0,91260.0,0.02192014]
[1731744218243,0.16364171,91263.0,91260.0,0.09015199]
[1731744218446,0.16364171,91271.0,91260.0,0.09015199]
[1731744218657,0.04091406,91291.0,91270.0,0.06823185]
[1731744218658,0.16364171,91273.0,91270.0,0.06823185]
[1731744218955,0.16364171,91275.0,91271.0,0.0794]
[1731744219561,0.16364171,91276.0,91271.0,0.0794]
[1731744219743,0.16364171,91275.0,91271.0,0.27645296]
[1731744219947,0.16364171,91276.0,91271.0,0.0794]
[1731744220153,0.16364171,91275.0,91271.0,0.27645003]
[1731744220462,0.16364171,91275.0,91271.0,0.0794]
[1731744221462,0.16364171,91277.0,91271.0,0.0794]
[1731744221645,0.16364171,91278.0,91271.0,0.0794]
[1731744221849,0.16364171,91277.0,91271.0,0.0794]
[1731744222154,0.16364171,91278.0,91271.0,0.0794]
[1731744222551,0.16364171,91281.0,91271.0,0.27645003]
[1731744222750,0.16364171,91283.0,91271.0,0.0794]
[1731744223452,0.22704171,91284.0,91271.0,0.27626056]
[1731744223660,0.16364171,91282.0,91271.0,0.0794]
[1731744223854,0.16364171,91283.0,91271.0,0.12028155]
[1731744224849,0.22704171,91284.0,91271.0,0.12028155]
[1731744225762,0.22704171,91284.0,91271.0,0.12040244]
[1731744226161,0.0634,91284.0,91271.0,0.12040244]
[1731744227553,1.9e-07,91272.0,91271.0,0.18863429]
[1731744227762,0.0051,91292.0,91271.0,0.21973429]
[1731744227959,0.19494171,91295.0,91291.0,0.06823185]
[1731744228163,0.0304,91292.0,91291.0,0.06823185]
[1731744230464,0.0304,91292.0,91291.0,0.10794333]
[1731744232969,0.0304,91292.0,91291.0,0.03971148]
[1731744233160,0.0304,91292.0,91285.0,0.0794]
[1731744233161,0.0304,91292.0,91286.0,0.06823185]
[1731744233360,0.3608,91290.0,91286.0,0.06823185]
[1731744236171,0.0304,91292.0,91286.0,0.06823185]
[1731744236172,0.3608,91291.0,91286.0,0.06823185]
[1731744237072,0.3608,91291.0,91286.0,0.14759185]
[1731744237971,0.3608,91290.0,91286.0,0.14759185]
[1731744240172,0.3608,91290.0,91288.0,0.02191506]
[1731744241078,0.3608,91290.0,91288.0,0.09014691]
[1731744241374,0.06823185,91289.0,91285.0,0.04056479]
[1731744241568,0.39687185,91289.0,91273.0,0.0051]
[1731744241773,0.39687185,91289.0,91271.0,0.00012089]
[1731744241774,0.06823185,91274.0,91271.0,0.00012089]
[1731744241963,0.06823185,91274.0,91271.0,0.04061327]
[1731744242167,0.06823185,91280.0,91271.0,0.00012089]
[1731744244177,0.0308,91281.0,91274.0,0.06823185]
[1731744244375,0.0308,91281.0,91279.0,0.06823185]
[1731744248380,0.3608,91282.0,91279.0,0.06823185]
[1731744248574,0.3608,91282.0,91278.0,0.06823185]
[1731744248966,0.3608,91282.0,91279.0,0.07936]
[1731744251366,0.16364171,91289.0,91279.0,0.27608207]
[1731744251571,0.16364171,91288.0,91279.0,0.27608207]
[1731744252580,0.16364171,91288.0,91280.0,0.19672207]
[1731744252778,0.16364171,91287.0,91279.0,0.27608207]
[1731744253888,0.06823185,91285.0,91279.0,0.19672207]
[1731744255082,0.06823185,91285.0,91278.0,0.31677842]
[1731744255476,0.06823185,91285.0,91280.0,0.19672207]
[1731744256577,0.23187356,91285.0,91278.0,0.23741842]
[1731744256781,0.06823185,91279.0,91276.0,0.19672207]
[1731744257081,0.0327,91278.0,91272.0,0.19672207]
[1731744257380,0.19634171,91278.0,91271.0,0.23838509]
[1731744257577,0.0327,91278.0,91272.0,0.19672207]
[1731744259381,0.0327,91278.0,91271.0,0.19684296]
[1731744260483,0.0327,91278.0,91272.0,0.19672207]
[1731744261079,0.0327,91278.0,91273.0,0.19672207]
[1731744261379,0.0327,91278.0,91272.0,0.19672207]
[1731744261575,0.0327,91278.0,91276.0,0.19672207]
[1731744261888,0.0327,91278.0,91275.0,0.19672207]
[1731744263182,0.0327,91278.0,91276.0,0.19672207]
[1731744263693,0.0327,91278.0,91275.0,0.19672207]
[1731744264977,0.0327,91278.0,91273.0,0.19672207]
[1731744266478,0.0327,91278.0,91271.0,0.19684296]
[1731744266983,0.36140001,91280.0,91273.0,0.19672207]
[1731744267290,0.3608,91280.0,91274.0,0.19672207]
[1731744268377,0.16364171,91281.0,91274.0,0.19672207]
[1731744268690,0.16364171,91281.0,91271.0,0.00012089]
[1731744268691,0.16364171,91282.0,91275.0,0.19672207]
[1731744269288,0.16364171,91282.0,91276.0,0.19672207]
[1731744269483,0.42959186,91283.0,91271.0,0.26241699]
[1731744269484,0.16364171,91281.0,91274.0,0.19672207]
[1731744270279,0.16364171,91281.0,91275.0,0.19672207]
[1731744270485,0.16364171,91282.0,91276.0,0.19672207]
[1731744270686,0.16364171,91282.0,91271.0,0.26241699]
[1731744270687,0.16364171,91282.0,91275.0,0.19672207]
[1731744271087,0.16364171,91281.0,91275.0,0.19672207]
[1731744271391,0.16364171,91281.0,91276.0,0.19672207]
[1731744271592,0.16364171,91282.0,91276.0,0.19672207]
[1731744271782,0.16364171,91281.0,91276.0,0.19672207]
[1731744272980,0.16364171,91282.0,91276.0,0.19672207]
[1731744273181,0.16364171,91281.0,91276.0,0.19672207]
[1731744273383,0.16364171,91280.0,91274.0,0.19672207]
[1731744273892,0.16364171,91280.0,91275.0,0.19672207]
[1731744275584,0.16364171,91281.0,91276.0,0.19672207]
[1731744275787,0.42903185,91283.0,91275.0,0.19672207]
[1731744275788,0.16364171,91280.0,91275.0,0.19672207]
[1731744278291,0.16364171,91279.0,91275.0,0.19672207]
[1731744278690,0.42903185,91283.0,91275.0,0.19672207]
[1731744278691,0.16364171,91280.0,91275.0,0.19672207]
[1731744279388,0.16364171,91279.0,91275.0,0.19672207]
[1731744279887,0.16364171,91279.0,91274.0,0.19672207]
[1731744280096,0.16364171,91278.0,91274.0,0.19672207]
[1731744281186,0.23187356,91278.0,91274.0,0.19672207]
[1731744281589,0.16364171,91277.0,91273.0,0.19672207]
[1731744282382,0.06823185,91278.0,91273.0,0.19672207]
[1731744282383,0.16364171,91276.0,91273.0,0.19672207]
[1731744282587,0.06823185,91278.0,91274.0,0.19672207]
[1731744282588,0.16364171,91277.0,91274.0,0.19672207]
[1731744283195,0.16364171,91277.0,91273.0,0.19672207]
[1731744283397,0.16364171,91277.0,91274.0,0.19672207]
[1731744283787,0.16364171,91276.0,91274.0,0.19672207]
[1731744284089,0.16364171,91277.0,91274.0,0.19672207]
[1731744284296,0.16364171,91276.0,91274.0,0.19672207]
[1731744284485,0.16364171,91277.0,91271.0,0.26241699]
[1731744284684,0.16364171,91277.0,91275.0,0.19713622]
[1731744285284,0.17778727,91278.0,91276.0,0.19713622]
[1731744286289,0.05326254,91277.0,91275.0,0.19713622]
[1731744286491,0.05326254,91277.0,91276.0,0.19713622]
[1731744286793,0.05326254,91277.0,91273.0,0.19713622]
[1731744286987,0.3608,91274.0,91271.0,0.00012089]
[1731744287191,0.06823185,91272.0,91271.0,0.00012089]
[1731744287493,0.12149945,91272.0,91271.0,0.00012089]
[1731744287687,0.06823185,91272.0,91271.0,0.00012089]
[1731744287881,0.12149945,91272.0,91271.0,0.00012089]
[1731744288288,0.26451743,91272.0,91271.0,0.00012089]
[1731744288492,0.12149945,91272.0,91271.0,0.00012089]
[1731744289297,0.26446827,91272.0,91271.0,0.00012089]
[1731744289491,0.31773587,91272.0,91271.0,0.00012089]
[1731744290391,0.12149945,91272.0,91271.0,0.00012089]
[1731744291798,0.48229945,91272.0,91271.0,0.00012089]
[1731744294699,0.52252146,91272.0,91271.0,0.00012089]
[1731744299313,0.4140676,91272.0,91271.0,0.00012089]
[1731744299498,0.48229945,91272.0,91271.0,0.00012089]
[1731744300400,0.42903185,91272.0,91271.0,0.00012089]
[1731744301110,0.5924012,91272.0,91271.0,0.00012089]
[1731744301308,0.42903185,91272.0,91271.0,0.00012089]
[1731744301896,0.48230276,91272.0,91271.0,0.00012089]
[1731744302103,0.42903185,91272.0,91271.0,0.00012089]
[1731744302809,0.48230256,91272.0,91271.0,0.00012089]
[1731744303614,0.3608,91272.0,91271.0,0.00012089]
[1731744314014,0.5241753,91272.0,91271.0,0.00012089]
[1731744314404,0.3608,91272.0,91271.0,0.00012089]
[1731744315416,0.41406771,91272.0,91271.0,0.00012089]